bitfinex/quotes_ETHUSD_20260228
["timestamp","ask_amount","ask_price","bid_price","bid_amount"]
[1772241422563,0.49166926,1933.7,1933.4,1.07156947]
[1772241422741,0.49166926,1933.8,1933.5,0.48674726]
[1772241423165,0.49166926,1933.8,1933.3,1.845]
[1772241423359,0.49166926,1933.6,1933.3,1.845]
[1772241423660,0.49166926,1933.6,1933.3,2.33174726]
[1772241425274,0.49166926,1933.6,1933.3,3.62486762]
[1772241425641,0.49166926,1933.7,1933.4,0.48674726]
[1772241426369,0.00353886,1934.0,1933.4,1.07156947]
[1772241426570,0.00353886,1934.0,1933.5,0.48674726]
[1772241426871,0.00353886,1934.0,1933.7,0.48674726]
[1772241427675,0.00353886,1934.0,1933.8,0.48674726]
[1772241427848,0.00353886,1934.0,1933.7,1.845]
[1772241428052,0.49520812,1934.0,1933.7,2.33174726]
[1772241428346,0.49520812,1934.0,1933.5,1.7797009]
[1772241428546,0.49520812,1934.0,1933.6,1.846]
[1772241429277,0.49520812,1934.0,1933.6,2.33274726]
[1772241429859,0.49520812,1934.0,1933.7,0.48674726]
[1772241430067,0.002,1933.9,1933.7,0.48674726]
[1772241430267,0.00353886,1934.0,1933.7,0.45343508]
[1772241431457,0.00353886,1934.0,1933.6,3.72474103]
[1772241431458,0.00353886,1934.0,1933.9,0.45343508]
[1772241433651,0.00353886,1934.0,1933.8,0.45343508]
[1772241433856,5.17186107,1934.3,1933.8,0.45343508]
[1772241433857,0.45269266,1934.3,1933.9,0.45343508]
[1772241434174,0.45269266,1934.3,1934.0,0.45343508]
[1772241437669,0.45269266,1934.3,1934.0,1.74608334]
[1772241438885,0.45269266,1934.3,1934.0,2.30143508]
[1772241441007,0.45269266,1934.3,1934.0,3.59408899]
[1772241441303,0.45269266,1934.3,1934.0,3.5940876]
[1772241441668,0.002,1934.4,1934.1,0.45343508]
[1772241441998,0.002,1934.5,1934.3,0.45343508]
[1772241442201,0.002,1934.6,1934.3,0.45343508]
[1772241443073,0.45069266,1934.8,1934.5,0.45343508]
[1772241443284,0.45069266,1934.8,1934.6,0.58482221]
[1772241443600,0.45069266,1934.8,1934.5,0.45343508]
[1772241443802,0.45069266,1934.8,1934.5,1.74574227]
[1772241444382,1.74283201,1934.8,1934.5,0.45343508]
[1772241444584,0.45069266,1934.9,1934.6,0.45343508]
[1772241446085,1.74275287,1934.9,1934.6,0.45343508]
[1772241447407,0.45069266,1934.8,1934.5,0.45343508]
[1772241451909,0.45069266,1934.9,1934.5,1.29231842]
[1772241452080,0.45069266,1934.9,1934.6,0.45343508]
[1772241453913,0.45069266,1934.9,1934.5,0.45343508]
[1772241454218,1.74258216,1935.2,1934.8,1.03825729]
[1772241454711,0.45069266,1935.2,1934.9,0.45343508]
[1772241456999,0.002,1935.1,1934.9,0.45343508]
[1772241457310,0.002,1935.1,1934.9,0.84227777]
[1772241457898,0.45269266,1935.1,1934.5,3.98659672]
[1772241458286,0.45269266,1935.1,1934.1,0.001]
[1772241458488,0.45069266,1934.3,1934.1,0.001]
[1772241459191,0.45069266,1934.3,1933.8,1.74722456]
[1772241459396,0.45069266,1934.3,1933.9,0.45343508]
[1772241459791,0.45223152,1935.0,1934.2,0.45343508]
[1772241460007,0.02584882,1934.9,1934.2,0.45343508]
[1772241460491,0.00153886,1935.0,1934.5,0.4921179]
[1772241460690,0.02738768,1935.0,1934.6,0.4921179]
[1772241462906,0.02738768,1935.0,1934.8,0.45674777]
[1772241464631,0.00153886,1935.0,1934.8,0.45674777]
[1772241465196,0.45550703,1934.9,1933.8,5.17203402]
[1772241465405,0.48135585,1934.9,1933.8,0.45774777]
[1772241465703,0.45550703,1934.6,1933.8,0.001]
[1772241466422,1.066,1934.8,1933.8,0.45774777]
[1772241466611,0.02584882,1934.6,1933.8,0.45774777]
[1772241466811,0.45550703,1934.5,1933.8,0.45774777]
[1772241467116,0.45550703,1934.3,1933.8,0.45774777]
[1772241469624,1.29252404,1934.2,1933.8,0.45774777]
[1772241471315,0.48135585,1934.1,1933.8,0.001]
[1772241471834,0.45550703,1933.9,1933.8,0.001]
[1772241472827,0.02584882,1934.0,1933.8,0.001]
[1772241473138,0.02584882,1933.9,1933.8,0.001]
[1772241473343,0.02584882,1934.0,1933.8,0.001]
[1772241474636,0.02584882,1934.0,1933.6,1.29391935]
[1772241474637,0.48135585,1933.9,1933.6,0.001]
[1772241475504,0.48135585,1933.8,1933.6,0.001]
[1772241475720,0.45550703,1933.8,1933.6,0.001]
[1772241477253,1.74812497,1934.1,1933.6,0.45774777]
[1772241477545,0.45550703,1934.0,1933.6,0.45774777]
[1772241479709,1.74819736,1934.0,1933.6,0.45774777]
[1772241480333,2.111,1934.4,1933.7,0.45674777]
[1772241480334,1.29255566,1934.2,1933.7,0.45674777]
[1772241480512,0.45550703,1934.1,1933.7,0.45674777]
[1772241480714,0.02584882,1934.1,1933.7,0.45674777]
[1772241481018,0.48135585,1934.1,1933.7,0.45674777]
[1772241482533,0.45550703,1934.0,1933.7,0.45774777]
[1772241482706,0.48135585,1934.0,1933.7,0.001]
[1772241482912,0.45550703,1933.8,1933.7,0.001]
[1772241483136,0.45550703,1933.8,1933.6,0.001]
[1772241483320,0.48135585,1933.8,1933.6,0.001]
[1772241484642,0.48135585,1933.7,1933.6,0.001]
[1772241485156,0.02584882,1933.7,1933.6,0.001]
[1772241485910,1.74820002,1934.0,1933.6,0.45774777]
[1772241486115,1.29269299,1934.0,1933.6,0.45774777]
[1772241486360,0.45550703,1933.9,1933.6,0.001]
[1772241488838,0.45550703,1933.8,1933.6,0.001]
[1772241491175,0.48135585,1933.8,1933.6,0.001]
[1772241492653,0.02584882,1933.8,1933.6,0.47796836]
[1772241492858,1.74366698,1934.1,1933.6,0.47796836]
[1772241493037,0.45102418,1934.0,1933.6,0.47796836]
[1772241493563,1.29245721,1934.3,1933.6,0.47796836]
[1772241493564,0.45102418,1934.2,1933.7,0.47696836]
[1772241493863,0.476873,1934.2,1933.7,0.47696836]
[1772241494545,0.45102418,1934.2,1933.7,0.47696836]
[1772241495654,0.02584882,1934.1,1933.8,0.47696836]
[1772241495841,0.476873,1934.1,1933.8,0.47696836]
[1772241496345,0.45202418,1934.1,1933.8,0.47696836]
[1772241497058,0.02584882,1934.0,1933.8,0.47696836]
[1772241497578,0.02584882,1934.0,1933.9,0.47696836]
[1772241498249,0.02584882,1934.0,1933.7,0.47806836]
[1772241499275,0.02584882,1934.0,1933.8,0.47696836]
[1772241500686,0.02584882,1934.0,1933.9,0.47696836]
[1772241500985,0.002,1934.6,1934.1,0.47696836]
[1772241501183,1.29426016,1934.6,1934.1,0.47696836]
[1772241501384,0.002,1934.6,1934.1,0.47696836]
[1772241504791,1.2942581,1934.6,1934.2,0.47696836]
[1772241505088,0.002,1934.6,1934.2,0.47696836]
[1772241506253,0.002,1934.9,1934.2,0.47696836]
[1772241506472,1.29406371,1934.9,1934.2,0.47696836]
[1772241507068,0.45302418,1934.9,1934.4,0.47696836]
[1772241508690,0.002,1934.5,1934.4,0.47696836]
[1772241508888,0.45302418,1934.9,1934.4,0.47696836]
[1772241509063,0.002,1934.6,1934.4,0.47696836]
[1772241509258,0.002,1934.6,1934.5,0.47696836]
[1772241510886,0.002,1934.8,1934.5,0.47696836]
[1772241511089,0.002,1934.8,1934.6,0.47696836]
[1772241512393,0.45302418,1934.8,1934.5,1.85]
[1772241512797,0.45302418,1934.8,1934.5,2.32696836]
[1772241513179,0.45302418,1934.8,1934.4,2.32796836]
[1772241513378,0.45302418,1934.8,1934.4,4.00939044]
[1772241513697,0.45302418,1934.8,1934.5,0.47696836]
[1772241515878,1.74515449,1934.8,1934.5,0.47696836]
[1772241516088,0.45302418,1934.8,1934.5,0.47696836]
[1772241517506,0.51656018,1935.9,1934.7,0.47696836]
[1772241517708,0.45102418,1935.7,1935.1,0.47696836]
[1772241518020,0.45102418,1935.7,1934.8,0.47696836]
[1772241518166,0.45102418,1935.7,1935.0,1.41496836]
[1772241518368,0.45102418,1935.7,1935.0,1.63896836]
[1772241519286,0.45102418,1935.7,1935.1,0.47696836]
[1772241519678,0.45102418,1935.6,1935.1,1.7688809]
[1772241520404,0.45102418,1935.6,1935.1,0.47696836]
[1772241521288,0.45102418,1935.6,1935.1,1.7873907]
[1772241521490,0.49073706,1935.7,1935.2,0.49547568]
[1772241521690,0.49073706,1935.9,1935.4,0.49547568]
[1772241521889,0.00153886,1936.0,1935.4,0.49547568]
[1772241522175,0.49227592,1936.0,1935.4,0.49547568]
[1772241522499,0.49227592,1936.0,1935.5,2.34747568]
[1772241522705,1.78360086,1936.0,1935.5,2.34747568]
[1772241523105,1.78360086,1936.0,1935.6,0.49547568]
[1772241523106,0.00153886,1936.0,1935.6,0.49547568]
[1772241523700,0.00153886,1936.0,1935.7,0.49547568]
[1772241526689,0.49227592,1936.0,1935.5,0.49547568]
[1772241526884,0.49227592,1936.0,1935.3,1.29176121]
[1772241526885,0.49227592,1936.0,1935.4,2.34647568]
[1772241527187,0.49227592,1936.0,1935.4,3.63819555]
[1772241529317,1.2928975,1936.0,1935.4,3.63819555]
[1772241529621,0.49073706,1935.9,1935.4,3.63819555]
[1772241530231,0.49073706,1935.9,1935.5,0.49547568]
[1772241530390,0.00153886,1936.0,1935.5,0.49547568]
[1772241530391,0.49227592,1936.0,1935.5,0.49547568]
[1772241532001,0.49227592,1936.0,1935.6,1.78706485]
[1772241532219,0.49227592,1936.0,1935.6,0.49547568]
[1772241532413,0.49073706,1935.9,1935.4,3.63913618]
[1772241532713,0.49073706,1935.9,1935.4,3.1436605]
[1772241532919,0.49073706,1935.9,1935.5,0.49547568]
[1772241534420,0.49273706,1935.9,1935.5,1.78709767]
[1772241535723,0.49073706,1935.8,1935.2,0.001]
[1772241536307,0.49073706,1935.6,1935.2,0.001]
[1772241537122,0.49073706,1935.6,1935.2,0.49647568]
[1772241537423,0.49073706,1935.7,1935.2,0.49647568]
[1772241538310,0.49073706,1935.6,1935.2,0.49647568]
[1772241538910,0.49073706,1935.6,1935.2,1.78832259]
[1772241540201,0.49073706,1935.4,1935.2,0.001]
[1772241542406,0.49073706,1935.3,1935.2,0.001]
[1772241544340,0.49073706,1935.7,1935.2,0.49647568]
[1772241546535,1.78230823,1935.7,1935.3,0.49547568]
[1772241548921,1.78230823,1935.7,1934.9,5.16917553]
[1772241548923,0.49073706,1935.2,1934.5,0.001]
[1772241549132,0.49547568,1935.3,1934.3,0.001]
[1772241549133,0.49073706,1935.0,1934.3,0.001]
[1772241550817,0.47332958,1934.8,1934.3,0.001]
[1772241552418,0.47332958,1934.8,1934.1,0.49537689]
[1772241552620,0.47332958,1934.8,1934.2,0.001]
[1772241553849,0.47332958,1934.6,1934.2,0.001]
[1772241556327,1.76562632,1934.6,1934.1,1.78796273]
[1772241556527,1.76562632,1934.6,1934.2,0.001]
[1772241558086,0.47332958,1934.5,1934.2,0.001]
[1772241558235,0.47332958,1934.5,1934.3,0.001]
[1772241558428,1.2923904,1934.4,1934.2,0.001]
[1772241558841,1.2923904,1934.4,1933.5,0.001]
[1772241558842,0.47332958,1934.3,1933.5,0.001]
[1772241559151,0.47332958,1934.3,1933.4,0.0031]
[1772241559152,0.47332958,1934.0,1933.4,0.0031]
[1772241560731,1.29272454,1933.9,1933.4,0.0031]
[1772241560931,0.47332958,1933.8,1933.4,0.0031]
[1772241561662,0.47332958,1933.8,1933.5,0.0031]
[1772241561892,0.47332958,1933.8,1933.4,0.0031]
[1772241562954,1.76618783,1933.7,1933.4,0.0031]
[1772241564368,0.47332958,1933.6,1933.3,0.001]
[1772241564573,0.47332958,1933.5,1933.0,0.00153886]
[1772241564878,0.47332958,1933.5,1933.0,0.00253886]
[1772241565070,0.47332958,1933.3,1933.0,0.00253886]
[1772241567788,1.29302874,1933.5,1933.1,0.49637689]
[1772241567978,1.76635832,1933.5,1933.1,0.001]
[1772241569187,1.76635832,1933.5,1933.2,0.001]
[1772241569384,1.76635832,1933.5,1933.1,0.001]
[1772241570866,0.47332958,1933.5,1933.1,0.001]
[1772241571062,1.76633816,1933.5,1933.1,0.001]
[1772241571267,1.76632583,1933.5,1933.1,0.49637689]
[1772241572794,1.76632914,1933.5,1933.2,0.001]
[1772241574001,1.76632914,1933.5,1933.2,0.002]
[1772241576282,1.29295109,1933.6,1933.2,0.49737689]
[1772241576483,1.29268252,1934.0,1933.4,0.49537689]
[1772241577407,1.29268252,1934.0,1933.6,0.49537689]
[1772241577722,0.47332958,1933.9,1933.2,0.001]
[1772241578019,0.47332958,1933.9,1933.3,0.001]
[1772241579416,1.29279139,1933.8,1933.4,0.49637689]
[1772241579602,1.29279139,1933.8,1933.4,0.49537689]
[1772241580523,1.76868752,1933.8,1933.4,0.49537689]
[1772241580994,1.76868752,1933.8,1933.5,0.001]
[1772241584613,1.76868752,1933.8,1933.4,0.49537689]
[1772241584815,0.47589613,1933.7,1933.4,0.001]
[1772241585024,0.47589613,1933.7,1933.2,0.001]
[1772241586990,1.29292511,1933.6,1933.2,0.001]
[1772241587188,1.76882124,1933.6,1933.2,0.001]
[1772241587387,1.76882124,1933.6,1933.3,0.0011]
[1772241587793,1.29390851,1933.7,1933.3,0.4512311]
[1772241591389,1.29390851,1933.7,1933.4,0.4501311]
[1772241591390,0.001,1933.7,1933.4,0.4501311]
[1772241595795,0.45974987,1933.7,1933.3,0.0011]
[1772241596123,0.45974987,1933.7,1933.3,0.4696312]
[1772241599648,1.75263937,1933.7,1933.4,0.0011]
[1772241599934,0.001,1933.6,1933.4,0.0011]
[1772241600305,0.001,1933.6,1933.4,0.4696312]
[1772241600726,0.001,1933.7,1933.4,0.4696312]
[1772241600727,0.001,1933.7,1933.5,0.4685312]
[1772241601249,5.1698551,1934.3,1933.6,0.4685312]
[1772241601250,0.45874987,1934.3,1933.6,0.4685312]
[1772241601905,0.45874987,1934.1,1933.6,1.29290592]
[1772241602106,0.45874987,1934.1,1933.7,0.4685312]
[1772241603950,0.45874987,1934.1,1933.7,1.76135192]
[1772241604117,1.2924899,1934.3,1933.8,0.4685312]
[1772241604659,1.75123977,1934.3,1933.8,0.4685312]
[1772241604839,0.002,1934.4,1934.0,0.4685312]
[1772241605143,0.002,1934.4,1934.2,0.4685312]
[1772241605341,5.55890353,1935.0,1934.7,0.4685312]
[1772241605342,1.29353764,1935.0,1934.7,0.4685312]
[1772241605720,1.75228751,1935.0,1934.5,0.4685312]
[1772241607244,1.75228751,1935.0,1934.5,1.76084906]
[1772241608110,0.46028873,1935.0,1934.6,0.4685312]
[1772241608311,0.45874987,1934.9,1934.3,0.4685312]
[1772241608533,0.45874987,1934.9,1934.0,1.94524718]
[1772241608534,0.45874987,1934.9,1934.2,1.828]
[1772241608837,0.45874987,1934.9,1934.2,2.2965312]
[1772241609412,0.45874987,1934.8,1934.3,0.4685312]
[1772241610415,1.29211136,1934.9,1934.3,0.4685312]
[1772241610616,1.75735201,1934.9,1934.3,0.4685312]
[1772241610817,0.46524065,1934.8,1934.2,1.828]
[1772241611238,0.46524065,1934.8,1934.2,2.30009987]
[1772241611946,1.29219,1934.7,1934.2,2.30009987]
[1772241612244,1.75743065,1934.7,1934.2,2.30009987]
[1772241613148,1.75743065,1934.7,1934.2,1.828]
[1772241613444,1.75743065,1934.7,1934.3,0.47209987]
[1772241614525,0.46524065,1934.2,1933.7,0.0011]
[1772241614829,0.46524065,1933.8,1933.5,0.0011]
[1772241615028,0.46524065,1933.8,1933.3,0.0011]
[1772241616531,0.46524065,1933.6,1933.3,0.0011]
[1772241617341,0.46524065,1933.6,1933.3,0.0022]
[1772241618759,1.29299198,1933.5,1933.3,0.0022]
[1772241620740,1.75823263,1933.5,1933.3,0.0022]
[1772241620927,0.46524065,1933.4,1933.2,0.0011]
[1772241621130,0.46524065,1933.4,1933.0,0.00253886]
[1772241622574,0.46524065,1933.4,1933.0,0.47463873]
[1772241622743,1.29312574,1933.3,1933.0,0.47463873]
[1772241623075,1.29312574,1933.3,1933.0,0.00253886]
[1772241623569,0.46524065,1933.2,1932.8,0.0011]
[1772241625550,1.75843328,1933.2,1933.1,0.0011]
[1772241625752,1.75843328,1933.2,1932.8,0.0011]
[1772241626565,0.46524065,1933.1,1932.8,0.0011]
[1772241627148,0.46524065,1933.1,1932.7,0.0011]
[1772241627450,1.75856708,1933.0,1932.7,0.0011]
[1772241627754,0.46524065,1932.9,1932.7,0.0011]
[1772241627968,0.46524065,1932.9,1932.5,0.0011]
[1772241629140,0.46524065,1932.9,1932.4,0.0011]
[1772241629141,0.46524065,1932.9,1932.4,1e-08]
[1772241629968,1.29346026,1932.8,1932.4,1e-08]
[1772241630344,0.46524065,1932.7,1932.2,0.47319987]
[1772241631364,0.46524065,1932.7,1932.3,0.47319987]
[1772241631666,1.75870091,1932.8,1932.3,0.47319987]
[1772241631837,0.46524065,1932.7,1932.3,0.47319987]
[1772241632038,0.46524065,1932.7,1932.2,0.0011]
[1772241632239,0.46524065,1932.7,1932.2,0.35808138]
[1772241633752,5.63896251,1933.0,1932.3,0.35698138]
[1772241634339,5.17372186,1933.0,1932.3,0.35698138]
[1772241634541,0.46524065,1932.9,1932.3,0.35698138]
[1772241636774,1.75870091,1932.8,1932.3,0.35698138]
[1772241637462,1.75870091,1932.8,1932.3,0.35808138]
[1772241637970,0.46524065,1932.7,1932.3,0.0011]
[1772241638271,0.46524065,1932.7,1932.2,0.0011]
[1772241638845,0.46524065,1932.5,1932.2,0.0011]
[1772241640075,0.46524065,1932.5,1932.0,0.35962024]
[1772241640454,1.29359412,1932.6,1932.0,0.35962024]
[1772241640644,1.75883948,1932.6,1932.0,0.35962024]
[1772241640973,1.75883948,1932.6,1932.1,0.35698138]
[1772241641160,1.29359412,1932.6,1932.1,0.35698138]
[1772241641867,1.75883948,1932.6,1932.1,0.35698138]
[1772241642957,0.46524536,1932.5,1932.1,0.35698138]
[1772241644762,0.46524536,1932.5,1932.0,0.00263886]
[1772241644973,1.75897336,1932.4,1932.0,0.35962024]
[1772241645277,1.293728,1932.4,1932.0,0.35962024]
[1772241648199,0.46524536,1932.4,1932.0,0.35962024]
[1772241649385,0.46524536,1932.5,1932.0,0.35962024]
[1772241649679,0.46524536,1932.5,1932.1,0.0011]
[1772241649884,0.46524536,1932.9,1932.1,0.35808138]
[1772241650048,5.17437087,1933.0,1932.1,0.35808138]
[1772241650049,0.001,1932.6,1932.1,0.35808138]
[1772241650248,0.001,1932.6,1932.2,0.35698138]
[1772241653368,0.46624536,1932.6,1932.2,0.35698138]
[1772241654083,0.46624536,1932.6,1932.1,0.0011]
[1772241654256,0.46624536,1932.6,1932.1,0.35731389]
[1772241654779,0.46524536,1932.4,1932.1,0.35731389]
[1772241656888,1.29379495,1932.3,1932.1,0.35731389]
[1772241659459,0.46524536,1932.4,1932.1,0.35731389]
[1772241659661,1.29370221,1932.5,1932.1,0.35731389]
[1772241660982,1.29370221,1932.5,1932.2,0.35621389]
[1772241661191,1.29370221,1932.5,1932.1,1.29502312]
[1772241661192,0.46524536,1932.4,1932.1,0.35731389]
[1772241661763,1.75904031,1932.3,1932.1,0.0011]
[1772241662196,1.76004031,1932.3,1932.1,0.0011]
[1772241665461,0.46524536,1932.2,1932.1,0.0011]
[1772241667084,1.75910727,1932.2,1932.0,0.00263886]
[1772241667392,0.46524536,1932.2,1932.0,0.00263886]
[1772241667599,1.75910975,1932.2,1932.0,0.00263886]
[1772241667935,0.46524536,1932.1,1931.8,0.0011]
[1772241668062,1.29386439,1932.2,1930.8,0.10775275]
[1772241668063,0.46788422,1932.0,1930.8,0.10775275]
[1772241668401,0.46524536,1931.6,1930.8,0.10775275]
[1772241668966,0.46524536,1931.6,1931.0,0.10775275]
[1772241669167,1.29433083,1931.5,1931.0,0.10775275]
[1772241670487,1.29433083,1931.5,1930.9,0.10775275]
[1772241671064,0.46587991,1931.4,1930.9,0.10775275]
[1772241671264,1.76029779,1931.4,1931.0,0.10775275]
[1772241671884,1.29441788,1931.4,1931.0,0.10775275]
[1772241673985,1.29441788,1931.4,1931.0,0.10885275]
[1772241674297,1.76025855,1931.5,1931.0,0.10885275]
[1772241674719,1.76025855,1931.5,1931.1,0.10775275]
[1772241676721,0.46587991,1931.4,1931.1,0.10775275]
[1772241677242,0.46587991,1931.4,1931.0,0.0011]
[1772241677384,0.46587991,1931.3,1931.0,0.0011]
[1772241677590,0.46587991,1931.3,1931.0,0.10885275]
[1772241677899,1.29444719,1931.4,1931.0,0.10885275]
[1772241678690,1.7603271,1931.4,1931.0,0.10885275]
[1772241685047,0.46587991,1931.7,1931.1,0.10775275]
[1772241685340,0.46587991,1931.8,1931.3,0.10775275]
[1772241686221,0.00153886,1932.0,1931.5,0.10775275]
[1772241686222,1.29553913,1932.0,1931.5,0.10775275]
[1772241686424,1.29554572,1932.0,1931.5,0.10775275]
[1772241686946,1.76142563,1932.0,1931.5,0.10775275]
[1772241687120,0.001,1931.7,1931.6,0.10775275]
[1772241703853,0.001,1931.7,1931.6,1.40201657]
[1772241704055,0.001,1931.7,1931.6,0.10775275]
[1772241705353,0.001,1931.7,1931.6,1.40201657]
[1772241705557,0.001,1931.7,1931.6,0.10775275]
[1772241706061,0.46587991,1931.9,1931.6,1.40201657]
[1772241706446,0.00153886,1932.0,1931.8,0.10775275]
[1772241707028,0.00153886,1932.0,1931.7,0.49793895]
[1772241707228,0.00153886,1932.0,1931.8,1.8]
[1772241708284,0.00153886,1932.0,1931.8,3.20185731]
[1772241709346,0.00153886,1932.0,1931.8,1.90775275]
[1772241711463,0.001,1931.9,1931.8,1.90775275]
[1772241713068,0.001,1932.3,1932.0,0.10675275]
[1772241713277,0.48699074,1932.4,1932.1,2.30193895]
[1772241713445,0.48699074,1932.4,1932.1,3.59584463]
[1772241713851,1.78159069,1932.6,1932.2,0.10675275]
[1772241714568,0.48699074,1932.5,1932.1,1.805]
[1772241714871,0.48699074,1932.5,1932.1,3.59585665]
[1772241720950,0.001,1932.6,1932.4,0.10675275]
[1772241721145,0.001,1932.6,1932.5,1.91375275]
[1772241721476,0.48699074,1932.9,1932.6,0.10675275]
[1772241721677,0.48699074,1932.9,1932.5,2.1971862]
[1772241721889,0.48699074,1932.5,1932.0,1.807]
[1772241722181,0.48699074,1932.5,1932.1,0.48001545]
[1772241722963,0.48699074,1932.7,1932.3,0.48001545]
[1772241723324,0.48699074,1932.7,1932.4,2.28701545]
[1772241723648,0.48699074,1932.7,1932.4,1.807]
[1772241723850,0.48699074,1932.6,1932.4,1.807]
[1772241724249,0.48699074,1932.6,1932.1,5.1757038]
[1772241724250,0.48699074,1932.6,1932.1,0.48001545]
[1772241724485,0.48699074,1932.6,1932.2,1.807]
[1772241724651,0.48699074,1932.6,1932.3,0.48001545]
[1772241728477,0.48699074,1932.6,1932.3,1.77380787]
[1772241729182,0.48699074,1932.6,1932.3,1.77380914]
[1772241729986,0.48699074,1932.7,1932.4,0.48001545]
[1772241730833,0.4889752,1932.6,1932.2,3.96647441]
[1772241731906,0.4889752,1932.9,1932.3,0.47545385]
[1772241732189,0.4889752,1932.9,1932.5,0.47545385]
[1772241732190,1.29344347,1932.9,1932.5,0.47545385]
[1772241732362,5.17486418,1933.0,1932.5,0.47545385]
[1772241732363,0.4889752,1932.8,1932.6,1.807]
[1772241733471,0.4889752,1932.9,1932.6,2.28245385]
[1772241737010,0.001,1932.8,1932.6,2.28245385]
[1772241738217,0.00153886,1933.0,1932.7,0.47545385]
[1772241738516,0.4889752,1933.2,1932.9,0.47545385]
[1772241738689,0.4889752,1933.2,1933.0,1.808]
[1772241738891,1.78217033,1933.2,1933.0,1.808]
[1772241739093,0.4889752,1933.1,1933.0,1.808]
[1772241740413,0.4889752,1933.2,1933.0,1.808]
[1772241742717,1.78210654,1933.3,1933.0,1.808]
[1772241743014,0.4889752,1933.3,1933.0,2.28345385]
[1772241743206,1.78210327,1933.3,1933.0,2.28345385]
[1772241744812,5.66121356,1933.4,1933.1,0.47545385]
[1772241745018,5.17223836,1933.4,1933.1,0.47545385]
[1772241745196,1.29305886,1933.4,1933.1,0.47545385]
[1772241747113,0.3901862,1933.6,1933.1,0.47545385]
[1772241747114,1.29286311,1933.7,1933.3,0.47545385]
[1772241747309,1.78183831,1933.7,1933.3,0.47545385]
[1772241748810,1.29286311,1933.7,1933.3,0.47545385]
[1772241749018,5.17137635,1933.8,1933.0,1.807]
[1772241749019,0.4889752,1933.5,1933.0,1.807]
[1772241749515,0.4889752,1933.5,1933.0,2.28245385]
[1772241749921,0.001,1933.3,1933.1,0.47545385]
[1772241750421,0.001,1933.3,1933.1,2.28145385]
[1772241751107,0.4889752,1933.7,1933.3,0.47545385]
[1772241751306,1.78181747,1933.8,1933.3,0.47545385]
[1772241752723,0.4889752,1933.9,1933.3,0.47545385]
[1772241753394,1.78176659,1933.8,1933.4,2.28045385]
[1772241753609,1.78176659,1933.8,1933.4,0.47545385]
[1772241753817,1.29279139,1933.8,1933.4,2.28045385]
[1772241754003,0.4889752,1933.7,1933.4,0.47545385]
[1772241754191,0.4889752,1933.7,1933.4,2.28045385]
[1772241755827,1.78186042,1933.7,1933.4,2.28045385]
[1772241756699,0.4889752,1933.6,1933.4,1.805]
[1772241761325,0.4889752,1933.6,1933.3,0.47545385]
[1772241761649,0.4889752,1933.6,1933.4,1.8061]
[1772241761829,1.781905,1933.6,1933.4,1.8061]
[1772241767131,0.4889752,1933.6,1933.4,1.8061]
[1772241771735,0.47484237,1933.7,1933.4,2.28009879]
[1772241774128,0.00253886,1934.0,1933.5,0.47399879]
[1772241774328,1.76904293,1934.0,1933.5,0.47399879]
[1772241776250,1.76904293,1934.0,1933.6,0.47399879]
[1772241778035,0.00253886,1934.0,1933.6,0.47399879]
[1772241778241,0.00253886,1934.0,1933.7,0.47399879]
[1772241779946,0.47638123,1934.0,1933.7,0.47399879]
[1772241780927,1.76908964,1934.0,1933.7,0.47399879]
[1772241781633,0.47384237,1933.9,1933.5,1.804]
[1772241783023,1.76663376,1933.8,1933.5,1.804]
[1772241783445,0.47384237,1933.7,1933.5,1.804]
[1772241783827,0.47384237,1933.7,1933.4,2.27809879]
[1772241784947,0.47384237,1933.7,1933.4,1.8041]
[1772241785128,1.76676748,1933.6,1933.4,1.8041]
[1772241785329,0.47384237,1933.6,1933.4,0.0011]
[1772241785527,0.47384237,1933.6,1933.4,1.8041]
[1772241787026,0.47384237,1933.6,1933.5,0.0011]
[1772241788148,1.29386798,1933.7,1933.5,0.0011]
[1772241791028,0.48404381,1933.7,1933.5,0.0011]
[1772241792948,1.29292511,1933.6,1933.5,0.0011]
[1772241793254,1.77695703,1933.7,1933.5,0.0011]
[1772241798861,1.77695703,1933.7,1933.6,0.0011]
[1772241799950,0.48304381,1933.6,1933.4,0.0011]
[1772241801463,1.77603579,1933.5,1933.4,0.0011]
[1772241805059,0.001,1933.7,1933.4,0.48567502]
[1772241805237,1.29386137,1933.7,1933.4,0.48567502]
[1772241805658,1.29386035,1933.7,1933.4,0.48567502]
[1772241806538,0.001,1933.7,1933.4,0.48567502]
[1772241808270,0.00253886,1934.0,1933.4,0.48567502]
[1772241808271,1.29520447,1934.0,1933.5,0.48457502]
[1772241808569,1.29519894,1934.0,1933.5,0.48457502]
[1772241808767,1.29519894,1934.0,1933.6,0.48457502]
[1772241809137,1.29519894,1934.0,1933.7,0.48457502]
[1772241809349,1.77824275,1934.0,1933.7,0.48457502]
[1772241809555,1.77824275,1934.0,1933.6,1.795]
[1772241809556,0.48304381,1933.9,1933.6,1.795]
[1772241809936,0.48304381,1933.9,1933.6,2.27957502]
[1772241810635,1.7757785,1933.9,1933.6,2.27957502]
[1772241811568,1.7757785,1933.9,1933.6,2.28067502]
[1772241811946,0.00253886,1934.0,1933.7,0.48457502]
[1772241812640,0.48304381,1934.6,1933.8,0.48457502]
[1772241815574,0.48304381,1934.4,1933.9,0.48457502]
[1772241817772,1.77550102,1934.3,1933.9,0.48457502]
[1772241819374,0.48304381,1934.2,1933.6,2.27667502]
[1772241819754,1.29259086,1934.1,1933.6,2.27667502]
[1772241819955,0.48304381,1934.0,1933.6,2.27667502]
[1772241820173,1.29259086,1934.1,1933.7,0.47449692]
[1772241820345,1.29250993,1934.3,1933.7,0.47449692]
[1772241821075,1.77568202,1934.3,1933.7,0.47449692]
[1772241822471,1.77568202,1934.3,1933.7,1.29283021]
[1772241822668,1.77568202,1934.3,1933.8,0.47449692]
[1772241825071,1.77568202,1934.3,1933.8,0.47549692]
[1772241825279,1.77568202,1934.3,1933.9,0.47449692]
[1772241827589,0.48317209,1934.2,1933.8,0.47549692]
[1772241832995,0.48317209,1934.0,1933.8,0.001]
[1772241835276,1.29272454,1933.9,1933.8,0.001]
[1772241836973,5.17021922,1934.2,1933.8,0.001]
[1772241837179,1.77580058,1934.1,1933.8,0.47549692]
[1772241838996,1.77580058,1934.1,1933.9,0.001]
[1772241839895,0.48317209,1934.0,1933.7,0.001]
[1772241842497,0.002,1934.1,1933.9,0.47449692]
[1772241842682,0.002,1934.1,1934.0,0.38927008]
[1772241843689,0.002,1934.1,1933.9,0.47449692]
[1772241844702,0.48517209,1934.1,1933.7,0.001]
[1772241845382,0.002,1934.1,1933.9,0.47449692]
[1772241852416,0.002,1934.1,1933.9,0.47549692]